bitfinex-derivatives/quotes_ETHF0:USTF0_20260131
["timestamp","ask_amount","ask_price","bid_price","bid_amount"]
[1769869769303,0.00292321,2535.2,2533.9,3.64624326]
[1769869769504,0.00292321,2535.2,2534.1,3.64624326]
[1769869769711,0.00292321,2535.2,2534.2,9.916309]
[1769869769910,0.19746,2535.9,2534.3,3.64624326]
[1769869770316,0.19739,2536.7,2535.0,9.916309]
[1769869770613,0.19739,2536.7,2534.5,3.64624326]
[1769869770614,0.19739,2536.7,2535.2,3.64624326]
[1769869770813,0.00390759,2536.7,2535.7,3.64624326]
[1769869771019,0.1973,2537.8,2535.2,0.00302348]
[1769869771020,0.1973,2537.8,2536.5,3.64624326]
[1769869771215,0.1973,2537.8,2536.1,3.949]
[1769869771411,0.19731,2537.7,2536.1,7.59524326]
[1769869771609,3.72378717,2538.4,2535.3,3.64624326]
[1769869771910,0.19734,2537.3,2535.3,3.64624326]
[1769869772506,0.19734,2537.3,2535.6,3.64624326]
[1769869773014,0.19729,2538.0,2535.8,3.64624326]
[1769869773416,0.19729,2538.0,2536.7,13.56255226]
[1769869773722,0.19729,2538.0,2536.7,3.64624326]
[1769869774113,0.19729,2538.0,2537.0,9.916309]
[1769869774313,0.19729,2538.0,2537.0,0.00288016]
[1769869774507,0.00420605,2538.4,2537.2,9.916309]
[1769869774712,0.19727,2538.3,2537.0,0.00288016]
[1769869774915,0.1973,2537.9,2537.0,0.00288016]
[1769869775416,0.1973,2537.9,2537.3,9.916309]
[1769869775717,0.00420605,2538.4,2537.8,9.916309]
[1769869775913,0.00420605,2538.4,2537.0,3.64912342]
[1769869776219,0.00420605,2538.4,2537.2,3.64624326]
[1769869776416,0.19728,2538.2,2537.0,0.00288016]
[1769869776616,0.19728,2538.2,2536.4,3.946]
[1769869776617,0.19734,2537.3,2536.0,3.946]
[1769869776922,0.19734,2537.3,2535.9,3.64624326]
[1769869777216,0.19732,2537.7,2535.7,2.314]
[1769869777414,0.19733,2537.5,2535.9,9.444299]
[1769869777615,0.19733,2537.5,2534.4,27.63302089]
[1769869777616,0.19737,2536.9,2535.3,3.946]
[1769869777814,3.84924565,2537.3,2535.2,4.01265111]
[1769869777815,3.84924565,2537.3,2535.8,1.32e-06]
[1769869778115,0.19741,2536.5,2535.8,1.32e-06]
[1769869778310,0.19743,2536.2,2534.6,3.946]
[1769869778517,0.19744,2536.0,2534.7,6.26]
[1769869778711,3.84924565,2536.7,2534.7,3.946]
[1769869778916,0.19744,2536.1,2534.7,7.95865111]
[1769869779213,0.20080476,2536.1,2535.0,9.444299]
[1769869779514,0.19738,2536.8,2535.7,9.444299]
[1769869779714,0.19732,2537.6,2535.1,4.01265111]
[1769869779919,0.19735,2537.3,2535.4,9.444299]
[1769869780121,0.19735,2537.3,2535.5,4.01265111]
[1769869780322,0.19735,2537.2,2535.6,10.10396629]
[1769869780524,0.00427311,2537.2,2535.6,10.10396629]
[1769869780723,4.00121351,2537.2,2534.9,3.84496629]
[1769869780924,4.00121351,2537.2,2535.0,2.314]
[1769869781225,0.19743,2536.2,2534.9,3.84496629]
[1769869781523,0.19743,2536.2,2535.0,6.259]
[1769869781721,0.19743,2536.2,2534.7,0.00461717]
[1769869781722,3.9969404,2537.0,2535.1,7.916609]
[1769869781927,0.19746,2535.8,2534.7,0.00461717]
[1769869782125,0.19749,2535.5,2534.7,7.17e-06]
[1769869782323,3.9969404,2535.6,2534.4,8.06e-06]
[1769869782523,3.9969404,2534.7,2534.4,8.06e-06]
[1769869782726,3.9969404,2534.7,2533.3,3.945]
[1769869783030,3.9969404,2534.7,2533.6,7.172569]
[1769869783215,3.9969404,2534.7,2533.5,6.714979]
[1769869783420,3.9969404,2534.7,2532.7,6.33470843]
[1769869783421,0.19759,2534.1,2532.8,3.945]
[1769869783627,0.19759,2534.1,2532.9,10.659979]
[1769869783820,3.9969404,2534.2,2532.5,6.714979]
[1769869784020,0.00482798,2534.7,2531.4,3.84496629]
[1769869784021,0.19765,2533.4,2531.4,7.78996629]
[1769869784326,0.19766,2533.3,2531.5,3.84496629]
[1769869784626,0.19766,2533.3,2531.4,3.94934579]
[1769869784627,0.19761,2533.9,2531.8,3.84496629]
[1769869784818,0.19765,2533.4,2531.8,3.84496629]
[1769869785021,0.19768,2533.0,2531.8,3.946]
[1769869785220,3.9969404,2533.4,2531.8,3.946]
[1769869785426,3.9969404,2533.4,2531.4,0.00434579]
[1769869785427,3.9969404,2532.7,2531.4,0.00434579]
[1769869785618,3.9969404,2532.1,2531.4,5.79e-06]
[1769869785822,0.00353305,2532.7,2531.4,5.79e-06]
[1769869786144,0.19756,2534.6,2532.3,3.84496629]
[1769869786427,0.19756,2534.6,2532.9,3.84496629]
[1769869786622,0.19756,2534.6,2533.5,3.84496629]
[1769869786827,3.9969404,2535.9,2533.6,3.84496629]
[1769869787024,0.19752,2535.0,2533.6,0.00378438]
[1769869787229,0.19753,2534.9,2533.6,0.00378438]
[1769869787434,4.1945104,2534.4,2532.2,2.48974214]
[1769869787727,0.19757,2534.4,2532.7,3.946]
[1769869788025,0.19751,2535.2,2532.7,3.946]
[1769869788233,0.19751,2535.2,2533.3,7.63657552]
[1769869788527,0.00287764,2535.9,2533.3,4.52e-06]
[1769869788528,3.9969404,2534.5,2533.3,4.52e-06]
[1769869788830,0.19746,2535.8,2531.9,2.48974214]
[1769869788831,3.9969404,2533.9,2532.0,3.946]
[1769869789033,3.9969404,2533.6,2532.0,3.946]
[1769869789227,3.9969404,2533.5,2532.0,3.946]
[1769869789529,0.19751,2535.2,2530.7,3.84496629]
[1769869789530,3.9969404,2532.7,2530.7,3.84496629]
[1769869789729,0.19772,2532.5,2530.8,10.10696629]
[1769869789935,4.00020259,2532.7,2530.8,10.10696629]
[1769869790130,0.00326219,2532.7,2530.9,3.84496629]
[1769869790628,0.00326219,2532.7,2531.9,5.14683338]
[1769869790820,0.00326219,2532.7,2530.9,3.84496629]
[1769869791021,0.19771,2532.6,2531.3,3.3579104]
[1769869791226,0.19774,2532.2,2530.7,0.00288633]
[1769869791524,0.19775,2532.1,2530.7,2.86246673]
[1769869791724,0.19777,2531.8,2530.7,0.00288633]
[1769869791925,0.19778,2531.7,2530.7,0.00288633]
[1769869792125,0.1978,2531.4,2529.7,3.84496629]
[1769869792731,0.19775,2532.1,2529.9,3.65982514]
[1769869793128,0.19775,2532.1,2529.9,3.663632]
[1769869793429,0.19779,2531.6,2529.9,7.216632]
[1769869793629,0.00326219,2532.7,2529.9,7.216632]
[1769869793630,4.0170964,2532.0,2529.9,3.663632]
[1769869793835,0.19782,2531.1,2529.9,0.00380686]
[1769869794732,4.2148564,2532.0,2529.9,3.663632]
[1769869794933,0.19776,2532.0,2529.9,3.663632]
[1769869795131,0.19779,2531.5,2529.9,0.00380686]
[1769869795442,4.0170964,2532.5,2529.9,3.663632]
[1769869795728,0.19778,2531.7,2529.9,3.663632]
[1769869796133,0.19772,2532.5,2530.5,3.65982514]
[1769869796525,0.00326219,2532.7,2531.3,3.65982514]
[1769869796725,0.00326219,2532.7,2531.5,3.65982514]
[1769869797338,0.00702194,2533.0,2531.5,3.65982514]
[1769869797533,0.19756,2534.6,2532.1,3.65982514]
[1769869797838,0.19756,2534.6,2532.3,3.65982514]
[1769869798040,0.1975,2535.3,2532.7,2.48974214]
[1769869798333,0.00379017,2535.3,2532.8,5.97582514]
[1769869798541,0.00379017,2535.3,2532.9,3.65982514]
[1769869798732,4.02088657,2535.3,2532.9,3.65982514]
[1769869799038,4.0170964,2534.6,2532.7,0.00371822]
[1769869799235,0.19762,2533.8,2532.7,0.00371822]
[1769869799636,4.0170964,2534.4,2531.7,3.65982514]
[1769869799637,0.19757,2534.3,2531.7,3.65982514]
[1769869799836,0.19765,2533.4,2531.4,7.21382514]
[1769869800028,0.19765,2533.4,2531.5,3.65982514]
[1769869800235,0.19769,2532.8,2531.4,3.554]
[1769869800431,0.19763,2533.6,2531.5,3.65982514]
[1769869800630,4.0170964,2535.5,2532.0,3.65982514]
[1769869800831,4.0170964,2533.9,2531.5,0.00335167]
[1769869801034,4.0170964,2531.8,2530.4,3.554]
[1769869801235,4.0170964,2531.8,2529.6,3.65982514]
[1769869801538,0.1977,2532.8,2530.6,3.65982514]
[1769869801734,0.1977,2532.8,2527.7,0.19809]
[1769869801735,4.0170964,2531.7,2529.3,3.65982514]
[1769869801932,0.19782,2531.1,2529.3,0.00375919]
[1769869802132,4.2149464,2530.8,2529.3,0.00375919]
[1769869802442,0.00437183,2531.7,2529.3,0.00375919]
[1769869802443,4.0170964,2530.6,2529.3,0.00375919]
[1769869802738,4.0170964,2530.6,2527.2,27.645]
[1769869802739,4.2150364,2529.7,2527.2,27.645]
[1769869802934,0.19794,2529.7,2527.8,3.65982514]
[1769869803328,0.19794,2529.7,2527.2,27.645]
[1769869803329,4.0170964,2529.5,2528.4,1.93e-06]
[1769869803529,4.0170964,2529.0,2526.8,3.554]
[1769869803836,0.19798,2529.1,2526.9,3.65982514]
[1769869804046,2.68756214,2531.2,2524.8,0.34828635]
[1769869804047,4.0170964,2531.6,2528.3,3.65982514]
[1769869804345,0.19778,2531.7,2529.0,3.65982514]
[1769869804528,0.19772,2532.5,2529.9,3.65982514]
[1769869804836,4.0170964,2533.1,2530.7,3.65982514]
[1769869805040,4.0170964,2533.1,2525.4,15.03232854]
[1769869805041,4.0170964,2530.4,2528.1,3.65982514]
[1769869805240,4.2151164,2528.7,2526.4,2.48974214]
[1769869805435,4.2151164,2528.7,2526.4,3.65982514]
[1769869805436,4.0170964,2528.7,2526.4,3.65982514]
[1769869805635,4.0170964,2528.7,2526.5,3.65982514]
[1769869805834,4.0170964,2529.0,2526.5,3.65982514]
[1769869806038,4.0170964,2529.8,2526.5,3.65982514]
[1769869806240,4.0170964,2528.9,2526.5,0.00317053]
[1769869806544,4.0170964,2527.6,2526.5,0.00317053]
[1769869806835,4.0170964,2527.6,2524.7,2.48974214]
[1769869806836,0.19812,2527.3,2524.1,3.556]
[1769869807037,3.556,2527.8,2524.0,3.86166604]
[1769869807235,0.19814,2527.1,2523.4,3.86166604]
[1769869807432,0.19821,2526.2,2524.0,3.86166604]
[1769869807632,2.48974214,2528.8,2524.7,3.86166604]
[1769869807934,27.86194,2529.7,2524.9,3.86166604]
[1769869807935,1.57770599,2527.0,2524.9,3.86166604]
[1769869808143,0.19807,2528.0,2525.2,3.86166604]
[1769869808339,2.48974214,2530.6,2526.0,3.86166604]
[1769869808540,2.48974214,2530.6,2524.8,3.557]
[1769869808541,0.1982,2526.3,2523.8,3.86166604]
[1769869808734,0.19811,2527.5,2521.5,2.48974214]
[1769869808735,3.64318922,2524.9,2521.5,2.48974214]
[1769869808940,3.64318922,2524.0,2521.2,3.86166604]
[1769869809238,3.64318922,2524.0,2520.8,2.48974214]
[1769869809239,3.84169922,2522.4,2519.0,3.86166604]
[1769869809443,3.64318922,2523.8,2521.2,3.86166604]
[1769869809640,3.84158922,2523.7,2521.2,3.86166604]
[1769869809946,3.64318922,2523.2,2521.2,0.00436649]
[1769869810334,0.00369289,2523.7,2521.3,3.86166604]
[1769869810642,3.64318922,2523.0,2521.2,0.00436649]
[1769869810942,3.84166922,2522.8,2520.0,3.86166604]
[1769869811142,0.25937823,2522.9,2520.0,3.86166604]
[1769869811143,3.64318922,2522.6,2520.0,3.86166604]
[1769869811542,0.00369289,2523.7,2520.8,3.86166604]
[1769869811543,0.173032,2522.5,2520.8,3.86166604]
[1769869811742,0.00369289,2523.7,2521.1,3.86166604]
[1769869811937,3.64318922,2523.5,2521.1,3.86166604]
[1769869812137,4.46173159,2523.6,2521.1,3.86166604]
[1769869812343,1.77882105,2523.4,2521.4,3.86166604]
[1769869812644,4.37528247,2523.6,2520.9,3.86166604]
[1769869812942,0.00369289,2523.7,2521.5,3.86166604]
[1769869812943,1.69237535,2523.3,2521.5,3.86166604]
[1769869813142,4.52274089,2523.6,2522.1,3.86166604]
[1769869813444,0.00369289,2523.7,2523.0,0.00739482]
[1769869813642,0.00369289,2523.7,2520.8,0.00311896]
[1769869813643,0.00369289,2523.7,2521.8,3.86166604]
[1769869813849,4.33573192,2523.5,2521.8,3.86166604]
[1769869814046,3.64318922,2523.6,2519.2,3.86166604]
[1769869814240,3.64318922,2523.0,2520.2,2.48974214]
[1769869814553,2.65302349,2523.5,2521.7,3.86166604]
[1769869814742,3.64318922,2526.5,2523.3,3.86166604]
[1769869814942,0.19802,2528.6,2521.8,33.593]
[1769869814943,3.64318922,2527.2,2524.0,3.86166604]
[1769869815145,0.19818,2526.6,2524.7,3.86166604]
[1769869815344,3.64318922,2527.3,2524.1,3.86166604]
[1769869815544,0.19809,2527.7,2524.0,3.563]
[1769869815545,0.19809,2527.7,2525.2,3.86166604]
[1769869815746,3.64318922,2527.5,2525.2,0.00297371]
[1769869815952,3.64318922,2527.5,2525.3,0.00739482]
[1769869816148,3.64318922,2527.5,2525.2,3.86463975]
[1769869816545,3.64318922,2527.5,2525.6,0.00739482]
[1769869816749,3.64318922,2526.9,2525.2,0.00297371]
[1769869817146,0.00358467,2527.7,2525.2,0.00297371]
[1769869817147,0.00358467,2527.7,2525.2,3.86463975]
[1769869817352,0.00358467,2527.7,2526.5,3.86166604]
[1769869817750,0.00358467,2527.7,2525.9,3.86166604]
[1769869817956,3.64318922,2529.2,2525.9,3.86166604]
[1769869818156,0.19794,2529.6,2526.5,3.86166604]
[1769869818455,2.48974214,2531.4,2525.6,3.563]
[1769869818456,3.84104922,2530.7,2527.2,3.86166604]
[1769869818653,3.84104922,2530.7,2527.1,2.68788214]
[1769869818654,3.64318922,2530.3,2527.4,3.86166604]
[1769869819055,0.00316945,2530.3,2528.0,3.86166604]
[1769869819355,3.64318922,2529.6,2527.4,0.00279721]
[1769869819753,3.64318922,2528.7,2526.1,3.86166604]
[1769869820149,3.84121922,2528.5,2526.0,2.322]
[1769869820350,3.64318922,2528.3,2526.1,3.86166604]
[1769869820759,3.84106922,2530.4,2526.7,3.86166604]
[1769869821063,0.19788,2530.4,2527.2,3.86166604]
[1769869821357,3.64318922,2531.0,2527.9,3.86166604]
[1769869821558,0.1978,2531.5,2527.3,24.941]
[1769869821559,0.1978,2531.5,2528.6,3.86166604]
[1769869821856,0.00332507,2531.5,2528.6,3.86557458]
[1769869822062,0.00332507,2531.5,2529.3,3.86166604]
[1769869822556,0.00332507,2531.5,2528.6,0.00390854]
[1769869822557,3.64318922,2532.9,2530.0,3.86166604]
[1769869822763,3.84089922,2532.6,2530.2,3.86166604]
[1769869823258,3.64318922,2532.0,2529.5,3.86166604]
[1769869823661,3.64697537,2532.0,2529.5,3.86166604]
[1769869823854,3.57822003,2532.0,2529.5,3.86166604]
[1769869824056,0.00378615,2532.0,2529.7,3.86166604]
[1769869824557,0.20154615,2532.0,2529.7,3.86166604]
[1769869824862,0.00378615,2532.0,2529.5,3.561]
[1769869825458,0.00378615,2532.0,2529.2,0.00702194]
[1769869825759,0.20154615,2532.0,2529.2,3.86868798]
[1769869825953,0.00378615,2532.0,2529.7,3.86166604]
[1769869826159,0.00378615,2532.0,2529.9,3.86166604]
[1769869826356,3.64318922,2534.2,2531.1,3.86166604]
[1769869826564,0.19756,2534.6,2531.8,3.86166604]
[1769869826764,0.19756,2534.6,2532.0,3.86166604]
[1769869826765,0.19755,2534.6,2532.0,3.86166604]
[1769869827063,0.19753,2534.9,2532.5,3.86166604]
[1769869827253,3.64318922,2534.7,2532.5,3.86497353]
[1769869827561,0.19735,2537.2,2532.5,3.86497353]
[1769869827562,0.19741,2536.5,2533.0,3.86166604]
[1769869827767,3.84061922,2536.3,2533.7,3.86166604]
[1769869828564,0.00505538,2536.3,2534.5,3.86166604]
[1769869828764,3.64318922,2538.6,2535.2,3.86166604]
[1769869828961,0.19703,2541.3,2534.5,0.00305157]
[1769869828962,0.19727,2538.2,2536.2,3.86166604]
[1769869829264,0.19721,2539.0,2536.3,3.86166604]
[1769869829568,3.64318922,2538.9,2536.3,3.86166604]
[1769869829760,3.64625948,2538.9,2536.3,3.86511682]
[1769869830066,3.64625948,2538.9,2536.5,3.86166604]
[1769869830067,0.00307026,2538.9,2536.5,3.86166604]
[1769869830564,0.00307026,2538.9,2537.2,3.86166604]
[1769869830759,3.64318922,2540.3,2537.2,3.86166604]
[1769869831070,3.64318922,2540.5,2537.9,3.86166604]
[1769869831371,3.64318922,2540.5,2538.1,3.86166604]
[1769869831763,0.00482917,2540.5,2538.1,3.86626162]
[1769869832168,3.556,2543.3,2538.1,3.86626162]
[1769869832169,3.84011922,2542.6,2539.3,3.86166604]
[1769869832465,3.84011922,2542.6,2538.6,3.86166604]
[1769869832466,3.64318922,2541.8,2538.6,3.86166604]
[1769869832669,3.64318922,2541.1,2538.2,3.86166604]
[1769869833067,3.64318922,2540.2,2538.1,0.00459558]
[1769869833268,3.64318922,2539.8,2538.1,0.00459558]
[1769869833470,3.64318922,2539.8,2537.5,3.555]
[1769869833471,3.64318922,2538.9,2536.2,3.555]
[1769869833665,0.19713,2540.1,2535.7,6.04474214]
[1769869833666,3.64318922,2538.4,2535.7,6.04474214]
[1769869834064,0.19713,2540.1,2535.8,3.86166604]
[1769869834065,3.64318922,2538.0,2535.8,3.86166604]
[1769869834260,3.64318922,2538.0,2535.7,3.555]
[1769869834464,3.64318922,2537.8,2535.7,3.55796721]
[1769869834664,3.64318922,2537.2,2535.7,0.00296721]
[1769869834965,0.00421202,2538.0,2530.2,0.19789]
[1769869834966,3.84056922,2536.9,2534.4,3.86166604]
[1769869835166,3.64318922,2536.6,2533.6,3.86166604]
[1769869835371,3.84059922,2536.4,2533.6,3.86166604]
[1769869835565,3.64318922,2536.2,2533.6,3.86166604]
[1769869835767,3.64318922,2535.8,2533.6,3.86456467]
[1769869835963,0.19748,2535.6,2533.6,0.00289863]
[1769869836169,3.64318922,2535.5,2533.6,0.00289863]
[1769869836674,3.84069922,2535.1,2532.2,3.86166604]
[1769869836862,3.84069922,2535.1,2532.4,3.94372304]
[1769869837175,4.01447774,2535.8,2533.1,3.94372304]
[1769869837375,0.00343851,2536.2,2533.8,3.94372304]
[1769869837674,0.00343851,2536.2,2534.0,3.94372304]
[1769869837973,4.01447774,2537.3,2534.5,3.94372304]
[1769869838472,0.19721,2539.0,2534.1,5.868]
[1769869838473,4.01447774,2537.9,2534.7,3.94372304]
[1769869838671,4.01447774,2538.6,2535.4,3.94372304]
[1769869838873,0.00419221,2538.6,2536.1,3.94372304]
[1769869839062,0.00419221,2538.6,2536.8,3.94372304]
[1769869839269,4.01447774,2540.2,2536.8,3.94372304]
[1769869839468,4.01447774,2540.2,2537.0,3.94372304]
[1769869839670,4.01447774,2539.5,2537.0,3.94372304]
[1769869839873,4.21166774,2539.3,2536.6,3.94372304]
[1769869840274,4.21644509,2539.3,2536.6,3.94372304]
[1769869840578,0.00477735,2539.3,2536.6,3.94372304]
[1769869840778,3.9427499,2539.3,2536.6,3.94372304]
[1769869841277,0.19724,2538.7,2536.6,3.94372304]
[1769869841574,0.00477735,2539.3,2536.1,0.00396178]
[1769869841575,3.93797255,2538.1,2536.1,0.00396178]
[1769869841778,4.13527255,2537.9,2536.1,0.00396178]
[1769869841971,0.1973,2537.9,2536.1,3.97776806]
[1769869842376,3.93797255,2537.1,2536.1,1.78e-06]
[1769869842577,3.93797255,2536.7,2534.1,3.97380628]
[1769869842870,3.551,2537.9,2533.4,3.97380628]
[1769869842871,3.93797255,2536.5,2533.4,3.97380628]
[1769869843073,4.13542255,2536.0,2533.5,3.97380628]
[1769869843573,0.00492322,2536.0,2534.0,3.97380628]
[1769869843981,3.94289577,2536.0,2533.5,0.00280592]
[1769869844178,3.93797255,2535.0,2533.5,0.00280592]
[1769869844480,3.93797255,2535.7,2533.5,0.00280592]
[1769869844776,0.19749,2535.4,2533.5,0.00280592]
[1769869845280,0.00492322,2536.0,2533.5,0.00280592]
[1769869845281,0.00492322,2536.0,2533.6,3.97380628]
[1769869845472,0.00492322,2536.0,2533.5,0.00280592]
[1769869845675,0.19751,2535.2,2533.5,0.00280592]
[1769869845882,0.00492322,2536.0,2533.5,0.00280592]
[1769869846078,0.00492322,2536.0,2533.5,3.9766122]
[1769869846382,0.00492322,2536.0,2533.5,0.00280592]
[1769869846575,0.19753,2534.9,2533.5,0.00280592]
[1769869846776,4.13551255,2534.8,2533.5,0.00280592]
[1769869847176,3.93797255,2534.4,2532.3,6.8e-07]
[1769869847481,3.93797255,2533.2,2530.7,3.97380628]
[1769869847682,3.93797255,2533.2,2530.8,3.97380628]
[1769869847874,4.13565255,2533.0,2530.8,3.97380628]
[1769869848074,3.93797255,2533.8,2530.8,3.97380628]
[1769869848278,3.9418538,2533.8,2530.8,3.97724411]
[1769869848577,0.00388125,2533.8,2531.4,3.97380628]
[1769869848872,3.551,2535.7,2530.8,0.00343783]
[1769869848873,0.19749,2535.4,2531.7,3.97380628]
[1769869849076,0.19749,2535.4,2531.5,24.864]
[1769869849077,0.19751,2535.2,2532.4,3.97380628]
[1769869849277,3.93797255,2535.0,2531.9,3.97380628]
[1769869849483,4.13554255,2534.4,2531.9,3.97380628]
[1769869849688,3.93797255,2534.4,2531.2,3.97380628]
[1769869849984,0.19758,2534.3,2531.2,3.97380628]
[1769869850180,4.13555255,2534.3,2531.2,4.17161628]
[1769869850371,3.93797255,2533.8,2531.2,3.97380628]
[1769869850573,4.13566255,2532.9,2530.8,3.97724411]
[1769869850875,3.93797255,2533.2,2530.8,3.97724411]
[1769869851078,3.93797255,2533.9,2531.0,3.97380628]
[1769869851476,4.13558255,2533.8,2531.0,3.97380628]
[1769869851980,3.93797255,2533.9,2531.0,3.97380628]
[1769869852685,0.003681,2534.4,2531.9,3.97380628]
[1769869853186,0.003681,2534.4,2532.1,3.97380628]
[1769869853479,0.003681,2534.4,2532.2,7.52680628]
[1769869853686,0.003681,2534.4,2532.3,3.97380628]
[1769869854077,3.93797255,2534.1,2531.3,3.97380628]
[1769869854289,3.93797255,2534.1,2531.5,3.97380628]
[1769869854788,0.003681,2534.4,2531.8,3.97380628]
[1769869854978,0.003681,2534.4,2532.0,3.97380628]
[1769869855284,3.94165355,2534.4,2532.0,3.97380628]
[1769869855585,3.93797255,2533.9,2532.0,3.97380628]
[1769869855787,3.93797255,2534.3,2532.0,3.97380628]
[1769869857585,4.13556255,2534.1,2532.0,3.97380628]
[1769869857974,0.19761,2533.9,2532.0,3.97380628]
[1769869858181,0.003681,2534.4,2532.0,3.97380628]
[1769869858878,0.003681,2534.4,2532.0,4.17155628]
[1769869859079,4.13922355,2534.4,2532.1,3.97380628]
[1769869859584,0.003681,2534.4,2532.3,3.97380628]
[1769869859786,3.94165355,2534.4,2532.3,3.97380628]
[1769869860183,3.94165355,2534.4,2531.1,0.19782]
[1769869860484,0.19758,2534.2,2531.8,3.97380628]
[1769869860687,0.19758,2534.2,2531.1,3.553]
[1769869860688,3.93797255,2532.7,2530.4,3.97380628]
[1769869860884,3.93797255,2533.2,2530.8,3.97724411]
[1769869861186,0.003681,2534.4,2532.3,3.97380628]
[1769869861386,0.003681,2534.4,2532.5,3.97380628]
[1769869861681,0.19738,2536.8,2533.8,3.97380628]
[1769869861883,3.93797255,2537.0,2534.2,3.97380628]
[1769869862079,3.93797255,2536.3,2534.2,3.97380628]
[1769869862278,1.79767799,2537.5,2531.9,24.875]
[1769869862279,3.93797255,2535.2,2532.0,3.97380628]
[1769869862480,3.93797255,2534.5,2531.6,3.553]
[1769869862787,3.93797255,2532.6,2530.2,0.404]
[1769869862985,3.93797255,2532.6,2530.1,7.52680628]
[1769869862986,4.13568255,2532.6,2530.1,3.553]
[1769869863287,0.19756,2534.5,2530.1,3.553]
[1769869863288,3.93797255,2533.2,2530.2,3.97380628]
[1769869863587,5.24764287,2535.4,2530.2,3.97380628]
[1769869863588,3.93797255,2533.8,2530.8,3.97380628]
[1769869863782,0.00292489,2533.8,2531.0,4.17163628]
[1769869863986,0.00292489,2533.8,2531.2,3.97380628]
[1769869864376,0.00292489,2533.8,2531.1,3.75082]
[1769869864377,0.00292489,2533.8,2531.6,3.97380628]
[1769869865085,0.0070039,2532.5,2531.0,3.97380628]
[1769869865279,0.0070039,2532.5,2530.8,0.00423948]
[1769869865485,3.93797255,2532.2,2530.8,0.00423948]
[1769869865681,3.94497645,2532.5,2528.0,38.19417372]
[1769869865682,4.13578255,2531.3,2529.1,3.97380628]
[1769869865875,4.13578255,2531.3,2528.9,3.553]
[1769869866183,0.0070039,2532.5,2528.9,3.553]
[1769869866184,3.93797255,2530.5,2528.9,3.553]
[1769869866375,4.13584255,2530.5,2528.9,3.553]
[1769869866581,0.00349214,2530.5,2528.9,7.53132272]
[1769869866778,3.63457083,2530.5,2528.9,0.00451644]
[1769869867077,3.63107869,2529.7,2527.1,3.95503708]
[1769869867589,0.00349214,2530.5,2527.5,3.95503708]
[1769869867788,0.00349214,2530.5,2527.1,0.06881646]
[1769869867789,0.00349214,2530.5,2527.9,3.95503708]
[1769869867993,3.63457083,2530.5,2528.1,3.95503708]
[1769869868284,3.63107869,2529.8,2528.0,3.554]
[1769869868489,3.63107869,2529.8,2527.8,0.00415892]
[1769869868892,0.00349214,2530.5,2527.8,0.00415892]
[1769869868893,3.63107869,2529.6,2527.8,0.00415892]
[1769869869189,3.63107869,2529.6,2525.7,0.19825]
[1769869869190,3.63107869,2528.8,2526.0,3.95503708]
[1769869869586,3.63107869,2528.8,2526.6,3.95503708]
[1769869869895,3.63107869,2530.4,2527.2,0.19812]
[1769869870080,3.63107869,2530.4,2527.4,4.15314708]
[1769869870391,3.63107869,2530.4,2527.2,0.00347149]
[1769869870392,3.63107869,2530.4,2527.5,7.51103708]
[1769869870597,3.63107869,2530.4,2527.6,3.95503708]
[1769869871089,3.63107869,2530.1,2527.6,3.95503708]
[1769869871291,3.63107869,2529.9,2527.6,3.95503708]
[1769869871482,0.00349214,2530.5,2527.8,3.95503708]
[1769869871685,3.63457083,2530.5,2528.0,3.95503708]
[1769869871885,0.00349214,2530.5,2528.0,4.15309708]
[1769869872179,3.63457083,2530.5,2528.0,3.95503708]
[1769869872386,0.19788,2530.4,2528.0,3.95503708]
[1769869872583,3.63107869,2530.3,2527.4,3.95503708]
[1769869872785,3.63107869,2529.6,2527.4,3.95503708]
[1769869872987,3.82903869,2529.4,2527.2,0.00347149]
[1769869873288,3.63107869,2528.7,2527.2,0.00347149]
[1769869873487,0.00495235,2528.7,2527.2,0.00347149]
[1769869873684,3.63603104,2528.7,2527.2,0.00347149]
[1769869873886,3.63107869,2528.1,2525.9,3.95503708]
[1769869874090,3.63603104,2528.7,2525.9,3.95503708]
[1769869874283,0.19802,2528.6,2526.0,4.02388866]
[1769869874489,3.63107869,2528.5,2526.0,7.58088866]
[1769869874684,3.82915869,2527.8,2525.4,3.95503708]
[1769869874887,0.00495235,2528.7,2525.4,3.95849228]
[1769869875086,0.00495235,2528.7,2526.6,3.95503708]
[1769869875289,3.63107869,2529.7,2526.8,3.95503708]
[1769869875598,3.63107869,2529.7,2527.0,3.95503708]
[1769869875891,3.63107869,2529.5,2527.0,3.95503708]
[1769869876091,3.63107869,2528.2,2525.4,3.95849228]
[1769869876392,3.63107869,2526.8,2523.7,3.95503708]
[1769869876590,3.82925869,2526.6,2523.7,3.558]
[1769869876797,3.82925869,2526.6,2523.8,0.06890441]
[1769869876992,3.63107869,2526.6,2523.8,4.02394149]
[1769869877196,3.63107869,2526.6,2524.4,3.95503708]
[1769869877394,0.19801,2528.7,2525.3,3.95503708]
[1769869877592,3.63107869,2529.4,2526.3,3.95503708]
[1769869877991,3.63107869,2530.0,2526.4,3.95503708]
[1769869878288,3.63107869,2529.9,2526.6,3.95503708]
[1769869878490,3.63432529,2529.9,2526.8,3.95503708]
[1769869878692,3.82902869,2529.6,2526.8,3.95503708]
[1769869879096,0.0032466,2529.9,2526.7,3.559]
[1769869879097,0.0032466,2529.9,2527.3,3.95503708]
[1769869879284,0.0032466,2529.9,2528.2,3.95503708]
[1769869879795,0.0032466,2529.9,2528.6,3.95503708]
[1769869879996,3.63432529,2529.9,2528.6,0.00510696]
[1769869880388,3.63432529,2529.9,2527.2,7.51403708]
[1769869880389,3.82903869,2529.4,2526.7,3.95503708]
[1769869880601,3.63432529,2529.9,2527.5,3.95503708]
[1769869880896,0.0070039,2530.1,2528.3,3.95503708]
[1769869881097,5.40593847,2531.8,2529.9,3.95503708]
[1769869881098,1.77485978,2531.8,2529.9,3.95503708]
[1769869881296,40.8,2533.2,2529.9,3.95503708]
[1769869881297,3.63107869,2533.0,2529.9,3.95503708]
[1769869881500,0.19765,2533.4,2529.9,3.95503708]
[1769869881699,3.63107869,2534.3,2531.0,3.95503708]
[1769869882004,3.559,2535.9,2531.9,3.95503708]
[1769869882190,3.559,2535.9,2531.1,2.319]
[1769869882191,3.63107869,2535.2,2532.1,3.95503708]
[1769869882391,3.63107869,2535.8,2532.1,3.95503708]
[1769869882592,3.559,2535.9,2532.8,3.95503708]
[1769869882898,26.71667799,2537.5,2533.3,3.95503708]
[1769869882899,3.82845869,2536.9,2533.3,3.95503708]
[1769869883090,0.00290958,2535.9,2533.5,3.95503708]
[1769869883292,0.00290958,2535.9,2534.3,3.95503708]
[1769869883494,0.00290958,2535.9,2534.5,3.95503708]
[1769869883689,0.00290958,2535.9,2534.8,3.55800482]